bitfinex-derivatives/quotes_ETHF0:USTF0_20250130
["timestamp","ask_amount","ask_price","bid_price","bid_amount"]
[1738263402497,0.61132,3271.4,3271.3,0.61133]
[1738263402793,0.61132,3271.4,3271.3,0.5091]
[1738263402993,1.0185,3271.6,3271.2,2.60760041]
[1738263403188,0.61134,3271.3,3271.2,2.60760041]
[1738263404091,0.515,3271.5,3271.0,3.2078]
[1738263404286,0.61139,3271.0,3270.9,2.60760041]
[1738263411499,0.00179304,3271.3,3270.9,2.60760041]
[1738263411697,0.61313304,3271.3,3271.2,2.60760041]
[1738263411996,0.00179304,3271.3,3271.2,2.60760041]
[1738263412201,0.00179304,3271.3,3271.2,6.42676041]
[1738263412999,0.61313304,3271.3,3271.2,6.42676041]
[1738263413203,0.61313304,3271.3,3271.2,5.81540041]
[1738263413793,0.61313304,3271.3,3271.2,6.42676041]
[1738263415203,0.00179304,3271.3,3271.2,6.42676041]
[1738263415401,0.00179304,3271.3,3271.2,5.81540041]
[1738263415708,0.61141,3270.9,3270.8,5.54460041]
[1738263418709,0.61141,3270.9,3270.8,2.60760041]
[1738263422401,0.00179304,3271.3,3270.8,5.81540041]
[1738263422596,0.00179304,3271.3,3271.2,2.60760041]
[1738263422799,0.00179304,3271.3,3271.2,3.21896041]
[1738263423301,0.61139,3271.0,3270.9,2.60760041]
[1738263424202,1.10389,3271.0,3270.9,2.60760041]
[1738263426102,0.5328,3271.1,3271.0,0.61139]
[1738263426103,1.14419,3271.1,3271.0,0.61139]
[1738263426307,0.5328,3271.1,3271.0,0.61139]
[1738263426707,1.14418,3271.1,3271.0,0.61139]
[1738263427819,0.61138,3271.1,3271.0,0.61139]
[1738263428112,0.00179304,3271.3,3271.2,0.61136]
[1738263428317,0.61313304,3271.3,3271.2,2.60760041]
[1738263428614,0.61313304,3271.3,3271.2,3.71326041]
[1738263428806,0.00179304,3271.3,3271.2,3.71326041]
[1738263430213,0.00179304,3271.3,3271.2,3.10190041]
[1738263430513,0.61313304,3271.3,3271.2,3.10190041]
[1738263430813,0.00179304,3271.3,3271.2,3.71326041]
[1738263431315,0.61313304,3271.3,3271.2,3.71326041]
[1738263431710,0.61313304,3271.3,3271.2,3.10190041]
[1738263432011,0.00179304,3271.3,3271.2,3.71326041]
[1738263432310,0.61313304,3271.3,3271.2,3.71326041]
[1738263433014,0.00179304,3271.3,3271.2,3.71326041]
[1738263433502,0.61313304,3271.3,3271.2,2.60760041]
[1738263433710,0.61136,3271.2,3271.0,0.61139]
[1738263433910,0.61138,3271.1,3271.0,1.0128]
[1738263434115,0.61138,3271.1,3271.0,1.62419]
[1738263434423,0.61313304,3271.3,3271.2,0.61136]
[1738263434712,0.61313304,3271.3,3271.2,2.60760041]
[1738263435417,0.61313304,3271.3,3271.2,3.21896041]
[1738263436317,0.61313304,3271.3,3271.2,2.60760041]
[1738263437023,0.61313304,3271.3,3271.2,3.21896041]
[1738263437218,0.00179304,3271.3,3271.2,3.21896041]
[1738263438221,0.61313304,3271.3,3271.2,3.21896041]
[1738263438415,0.00179304,3271.3,3271.2,3.21896041]
[1738263438919,0.00179304,3271.3,3271.2,2.60760041]
[1738263438920,0.61313304,3271.3,3271.2,2.60760041]
[1738263439513,0.00179304,3271.3,3271.2,3.21896041]
[1738263439721,0.6978961,3271.9,3271.2,2.60760041]
[1738263439921,0.6978961,3271.9,3271.8,2.60760041]
[1738263440218,1.3091261,3271.9,3271.8,2.60760041]
[1738263447345,0.61126,3271.7,3271.6,3.2078]
[1738263447751,0.61126,3271.8,3271.6,3.81908]
[1738263447945,0.61126,3271.8,3271.7,0.61126]
[1738263448143,0.6978961,3271.9,3271.6,3.2078]
[1738263448351,0.6978961,3271.9,3271.8,3.21884041]
[1738263449458,1.3091261,3271.9,3271.8,3.21884041]
[1738263449753,3.2078,3272.6,3271.8,7.60760041]
[1738263449950,0.61115,3272.4,3272.2,3.81896]
[1738263450543,0.61115,3272.4,3272.3,0.61115]
[1738263450841,3.2078,3272.6,3272.3,0.61115]
[1738263450842,0.61112,3272.5,3272.3,0.61115]
[1738263451048,0.61112,3272.5,3272.4,2.60760041]
[1738263451733,0.6111,3272.6,3272.4,2.60760041]
[1738263451940,0.6111,3272.6,3272.5,0.61111]
[1738263452135,0.6111,3272.6,3272.5,1.59201]
[1738263452535,0.0045861,3272.7,3272.5,1.59201]
[1738263452536,0.6156761,3272.7,3272.5,1.59201]
[1738263452772,0.6156761,3272.7,3272.6,3.8189]
[1738263452773,0.0045861,3272.7,3272.6,3.8189]
[1738263453121,0.61098,3273.3,3272.7,0.61108]
[1738263453328,0.61099,3273.2,3273.1,3.2078]
[1738263453527,0.61099,3273.2,3273.1,3.6954]
[1738263453728,0.61098,3273.3,3273.1,3.6954]
[1738263453929,0.61098,3273.2,3273.1,3.6954]
[1738263454826,0.61098,3273.2,3273.1,2.60760041]
[1738263455535,0.5114,3273.3,3272.8,2.60760041]
[1738263455733,0.61104,3272.9,3272.8,2.60760041]
[1738263456037,0.61106,3272.8,3272.7,6.1448]
[1738263456335,0.61106,3272.8,3272.7,8.75240041]
[1738263457135,0.61106,3272.8,3272.7,5.81540041]
[1738263458634,0.61103,3273.0,3272.8,0.61106]
[1738263459837,0.489,3273.2,3272.7,5.81540041]
[1738263460036,0.611,3273.1,3273.0,2.60760041]
[1738263461735,0.5218,3273.3,3272.4,5.81540041]
[1738263461736,3.2078,3273.2,3272.4,5.81540041]
[1738263461937,0.61111,3272.5,3272.4,2.60760041]
[1738263473440,3.2078,3273.0,3272.4,2.60760041]
[1738263473643,3.81882,3273.0,3272.9,2.60760041]
[1738263474551,3.81882,3273.0,3272.9,3.65430041]
[1738263474848,0.61102,3273.0,3272.9,6.86210041]
[1738263475050,0.61102,3273.0,3272.9,7.38480041]
[1738263475246,0.61102,3273.0,3272.9,4.17700041]
[1738263475550,0.61108,3272.7,3272.6,2.60760041]
[1738263476751,0.61111,3272.5,3272.4,0.4868]
[1738263476949,0.61113,3272.4,3272.3,2.60760041]
[1738263477952,0.494,3272.5,3272.0,3.2078]
[1738263477953,0.494,3272.5,3272.0,5.81540041]
[1738263478147,0.61119,3272.1,3272.0,2.60760041]
[1738263481956,0.61118,3272.2,3272.0,3.21881041]
[1738263482158,0.61118,3272.2,3272.1,2.60760041]
[1738263487463,0.61118,3272.2,3272.1,3.21879041]
[1738263488363,0.61118,3272.2,3272.1,2.60760041]
[1738263516881,0.61114,3272.4,3272.3,0.61114]
[1738263517182,0.61114,3272.4,3272.3,3.81894]
[1738263517387,0.61114,3272.4,3272.3,3.2078]
[1738263518181,0.61114,3272.4,3272.3,4.2623]
[1738263519473,0.513,3272.9,3272.3,4.2623]
[1738263519782,0.513,3272.9,3272.7,2.60760041]
[1738263519783,0.61106,3272.8,3272.7,2.60760041]
[1738263522478,3.2078,3273.0,3272.4,3.09920041]
[1738263522673,0.61111,3272.5,3272.4,3.09920041]
[1738263523481,3.2078,3273.0,3272.4,3.09920041]
[1738263523677,0.61106,3272.8,3272.7,2.60760041]
[1738263531183,0.61106,3272.8,3272.7,3.21868041]
[1738263532488,0.61106,3272.8,3272.7,2.60760041]
[1738263533197,0.61106,3272.8,3272.7,6.42648041]
[1738263534887,0.61106,3272.8,3272.7,5.81540041]
[1738263536089,0.61106,3272.8,3272.7,6.42648041]
[1738263538184,0.61106,3272.8,3272.7,5.81540041]
[1738263542096,0.4881,3272.9,3272.7,5.81540041]
[1738263542398,0.61104,3272.9,3272.8,0.4886]
[1738263543288,0.61103,3273.0,3272.8,1.09965]
[1738263543798,0.61104,3272.9,3272.8,1.09965]
[1738263544098,0.61104,3272.9,3272.8,0.4886]
[1738263544397,0.61104,3272.9,3272.8,1.09966]
[1738263545399,0.61104,3272.9,3272.8,0.4886]
[1738263545597,0.61106,3272.8,3272.7,5.81540041]
[1738263545895,0.61113,3272.4,3272.3,3.2078]
[1738263546400,0.61115,3272.3,3272.0,0.5265]
[1738263546600,0.61124,3271.8,3271.7,1.0489]
[1738263547092,0.61124,3271.8,3271.7,3.65650041]
[1738263547799,1.0007,3272.1,3271.7,3.65650041]
[1738263547800,0.61124,3271.9,3271.7,3.65650041]
[1738263548786,1.0007,3272.1,3271.7,3.65650041]
[1738263548992,0.61124,3271.8,3271.7,3.65650041]
[1738263549899,0.61124,3271.8,3271.7,4.15230041]
[1738263550593,0.61124,3271.8,3271.7,4.76356041]
[1738263550801,0.5331,3272.2,3271.7,4.15230041]
[1738263550998,0.61112,3272.5,3272.3,0.61114]
[1738263551199,0.61109,3272.7,3272.5,0.6111]
[1738263551500,0.61107,3272.8,3272.6,3.81889]
[1738263551798,0.61107,3272.8,3272.7,2.60760041]
[1738263555696,0.5245,3273.0,3272.7,2.60760041]
[1738263555898,0.61105,3272.9,3272.7,2.60760041]
[1738263556102,0.61101,3273.1,3272.9,0.61103]
[1738263556302,0.61101,3273.1,3273.0,3.09680041]
[1738263557399,0.61101,3273.1,3273.0,2.60760041]
[1738263563507,0.61101,3273.1,3272.7,3.09680041]
[1738263563508,0.61106,3272.8,3272.7,3.09680041]
[1738263563702,0.61106,3272.8,3272.7,3.70788041]
[1738263563899,0.61106,3272.8,3272.7,3.09680041]
[1738263564508,0.61106,3272.8,3272.7,2.60760041]
[1738263564701,0.61108,3272.7,3272.6,3.7398]
[1738263564903,1.11728,3272.7,3272.6,3.7398]
[1738263566108,1.11728,3272.7,3272.6,3.2078]
[1738263567815,0.61117,3272.2,3272.1,2.60760041]
[1738263571116,0.61122,3272.0,3271.9,0.61123]
[1738263571311,0.5321,3272.1,3271.8,3.63590041]
[1738263571512,0.5321,3272.1,3271.9,0.61123]
[1738263571719,1.1433,3272.1,3271.9,0.61123]
[1738263573617,0.5321,3272.1,3271.8,3.63590041]
[1738263573918,0.5321,3272.1,3272.0,0.61121]
[1738263575023,0.5321,3272.1,3271.8,3.63590041]
[1738263575024,3.2078,3272.6,3271.8,3.63590041]
[1738263575224,0.61115,3272.4,3272.3,2.60760041]
[1738263575411,0.61115,3272.4,3272.3,3.12640041]
[1738263576525,0.61115,3272.4,3272.3,2.60760041]
[1738263582027,0.61115,3272.4,3272.3,3.21875041]
[1738263582723,2.917,3272.5,3271.7,5.81540041]
[1738263582922,2.917,3272.5,3271.7,6.34180041]
[1738263582923,0.61124,3271.8,3271.7,6.34180041]
[1738263584919,0.6112,3272.1,3271.9,0.61123]
[1738263585118,0.6112,3272.1,3272.0,3.21881041]
[1738263585819,4.44483,3272.5,3272.2,0.61117]
[1738263585820,2.917,3272.5,3272.2,0.61117]
[1738263586029,0.61114,3272.4,3272.3,3.10230041]
[1738263589728,0.5004,3272.8,3272.3,3.10230041]
[1738263589933,0.61112,3272.5,3272.3,3.71344041]
[1738263590526,0.5004,3272.8,3272.3,3.10230041]
[1738263590732,0.6111,3272.6,3272.4,0.61113]
[1738263590935,0.5004,3272.8,3272.5,0.61111]
[1738263591134,0.61109,3272.7,3272.5,0.61111]
[1738263591328,0.61109,3272.7,3272.6,2.60760041]
[1738263591926,0.5004,3272.8,3272.6,3.10160041]
[1738263592131,0.61108,3272.7,3272.6,3.10160041]
[1738263593939,0.5004,3272.8,3272.3,3.10230041]
[1738263594136,0.5004,3272.8,3272.1,3.81898]
[1738263594137,0.61117,3272.2,3272.1,3.7156]
[1738263594435,0.61119,3272.1,3272.0,2.60760041]
[1738263594627,1.62259,3272.1,3272.0,2.60760041]
[1738263595232,0.5141,3272.1,3272.0,3.21881041]
[1738263597739,0.61109,3272.6,3272.5,1.5287]
[1738263598937,0.61109,3272.6,3272.5,1.0066]
[1738263600240,0.5141,3272.7,3272.5,1.0066]
[1738263600537,1.12518,3272.7,3272.5,1.6177]
[1738263601334,0.61109,3272.6,3272.5,1.0066]
[1738263604844,1.12519,3272.7,3272.6,0.61109]
[1738263605143,0.61109,3272.7,3272.6,0.61109]
[1738263605344,0.61109,3272.7,3272.6,0.5312]
[1738263606437,0.61109,3272.7,3272.6,1.14229]
[1738263606844,0.5036,3272.9,3272.6,1.14229]
[1738263607141,0.61108,3272.7,3272.6,0.5312]
[1738263607843,0.5036,3272.9,3272.6,0.5312]
[1738263608148,1.11464,3272.9,3272.8,2.60760041]
[1738263609445,0.0045861,3273.5,3273.3,0.61095]
[1738263609741,0.4922,3273.9,3273.4,6.33370041]
[1738263610044,0.61093,3273.5,3273.4,3.2078]
[1738263610251,0.611,3273.1,3273.0,3.7363]
[1738263610538,0.611,3273.1,3273.0,3.2078]
[1738263611243,1.0583,3273.3,3273.0,3.2078]
[1738263611446,0.61099,3273.2,3273.1,1.0186]
[1738263612542,0.61097,3273.3,3273.2,0.61098]
[1738263612737,0.61097,3273.3,3273.2,0.5311]
[1738263613047,0.00303316,3273.4,3273.3,0.61096]
[1738263620954,0.00303316,3273.4,3272.7,0.0045861]
[1738263621153,1.50243316,3273.4,3272.7,0.5294861]
[1738263621451,1.50243316,3273.4,3272.9,0.61103]
[1738263621649,0.61101,3273.1,3272.9,0.61103]
[1738263621849,1.50243316,3273.4,3272.8,3.21865041]
[1738263622048,3.02982316,3273.4,3272.7,0.5294861]
[1738263622252,0.61106,3272.8,3272.7,0.5294861]
[1738263622458,0.61106,3272.8,3272.7,0.0045861]
[1738263626250,5.0,3272.8,3272.0,3.2078]
[1738263626451,3.2078,3272.5,3272.0,3.2078]
[1738263626667,1.52777,3272.6,3272.0,3.2078]
[1738263627352,0.61119,3272.1,3272.0,3.2078]
[1738263627556,0.61119,3272.1,3272.0,3.2123861]
[1738263630059,0.5199,3272.4,3272.0,3.2123861]
[1738263630361,0.61118,3272.2,3272.0,3.2123861]
[1738263631162,0.5199,3272.4,3272.0,3.2123861]
[1738263632163,0.61119,3272.1,3272.0,3.2123861]
[1738263632359,0.61119,3272.1,3272.0,0.0045861]
[1738263633164,0.5199,3272.4,3272.0,0.0045861]
[1738263633366,0.61117,3272.2,3272.0,0.6157961]
[1738263633768,0.5199,3272.4,3272.1,0.5206]
[1738263633969,1.13103,3272.4,3272.2,0.61116]
[1738263634175,0.5199,3272.4,3272.2,1.10176]
[1738263635268,1.13104,3272.4,3272.2,0.4906]
[1738263635965,1.13104,3272.4,3272.2,1.10177]
[1738263638369,0.61115,3272.3,3272.2,0.4906]
[1738263639266,0.5199,3272.4,3272.2,0.4906]
[1738263639466,1.13105,3272.4,3272.2,0.4906]
[1738263640267,0.61115,3272.3,3272.2,0.4906]
[1738263641070,0.5199,3272.4,3272.0,0.77450268]
[1738263641071,0.5199,3272.4,3272.0,0.0045861]
[1738263641367,0.61119,3272.1,3272.0,0.0045861]
[1738263644272,3.21879041,3272.1,3272.0,0.0045861]
[1738263644464,6.42659041,3272.1,3272.0,0.0045861]
[1738263645469,0.61134,3271.3,3271.2,3.2078]
[1738263646564,1.52825,3271.6,3270.9,1.0195861]
[1738263646565,2.60760041,3271.5,3270.9,1.0195861]
[1738263646877,0.6114,3271.0,3270.9,1.0195861]
[1738263647076,0.61139,3271.1,3270.9,1.0195861]
[1738263647271,0.61136,3271.2,3271.0,3.21899041]
[1738263647575,0.4947,3271.4,3270.9,1.0195861]
[1738263647776,0.6114,3271.0,3270.9,1.0195861]
[1738263648472,0.6114,3271.0,3270.9,0.0045861]
[1738263652269,6.5864,3271.0,3270.9,0.0045861]
[1738263652475,1.52861,3270.8,3269.8,1.5072]
[1738263652671,0.6116,3270.0,3269.8,1.5072]
[1738263653079,0.61157,3270.1,3269.9,3.2078]
[1738263653376,0.4965,3270.3,3269.9,3.2078]
[1738263653563,0.61157,3270.1,3269.9,3.2078]
[1738263653769,0.4965,3270.3,3270.0,0.61158]
[1738263653770,0.61153,3270.3,3270.0,0.61158]
[1738263653968,3.2078,3270.5,3270.0,2.60760041]
[1738263654164,3.2078,3270.5,3269.8,1.5072]
[1738263654165,2.917,3270.9,3270.3,5.81540041]
[1738263654363,0.61141,3271.0,3270.7,0.61145]
[1738263654564,0.5313,3271.2,3270.7,0.493]
[1738263654776,0.61141,3271.0,3270.7,0.493]
[1738263654975,0.61141,3271.0,3270.7,1.10444]
[1738263655164,0.61143,3270.9,3270.7,0.493]
[1738263656078,0.61141,3271.0,3270.7,1.10445]
[1738263656279,0.5313,3271.2,3270.7,0.493]
[1738263656481,0.61142,3270.9,3270.7,0.493]
[1738263657176,0.5313,3271.2,3270.7,0.493]
[1738263657378,0.5313,3271.2,3270.4,1.0304]
[1738263657579,0.61148,3270.6,3270.4,1.0304]
[1738263657774,1.52845,3271.1,3270.4,1.0304]
[1738263657775,1.52845,3271.1,3270.4,1.6419]
[1738263657976,0.61147,3270.6,3270.4,1.0304]
[1738263658175,0.61147,3270.6,3270.4,1.64191]
[1738263658370,0.61147,3270.6,3270.4,1.0304]
[1738263658978,1.52845,3271.1,3270.5,3.2078]
[1738263659174,0.61146,3270.7,3270.5,3.2078]
[1738263659873,0.61147,3270.6,3270.5,3.2078]
[1738263660867,0.61147,3270.6,3270.5,2.7078]
[1738263661480,2.917,3271.0,3270.5,2.7078]
[1738263661684,0.5313,3271.2,3270.6,3.64540041]
[1738263661981,0.61138,3271.1,3270.6,3.64540041]
[1738263662281,0.61141,3271.0,3270.7,0.61144]
[1738263662481,0.61141,3271.0,3270.8,0.61143]
[1738263662680,0.61139,3271.1,3270.7,0.61145]
[1738263662882,1.52815,3271.8,3270.7,0.61145]
[1738263662883,0.0045861,3271.6,3270.9,5.81540041]
[1738263663079,0.6158761,3271.6,3271.3,3.81913]
[1738263663383,0.6158861,3271.6,3271.4,1.0421]
[1738263663679,0.6113,3271.5,3271.4,0.5264]
[1738263663882,0.0045861,3271.6,3271.4,0.5264]
[1738263663883,0.0045861,3271.6,3271.4,1.1377]
[1738263664079,0.0045861,3271.6,3271.5,2.60760041]
[1738263664080,0.6158661,3271.6,3271.5,2.60760041]
[1738263665582,0.6114,3271.0,3270.9,5.81540041]
[1738263666077,0.6114,3271.0,3270.9,2.60760041]
[1738263666387,0.61149,3270.5,3270.4,3.2078]
[1738263666680,2.60760041,3271.2,3270.0,3.21918041]
[1738263666681,0.61155,3270.2,3270.0,3.21918041]
[1738263666880,0.61156,3270.1,3270.0,2.60760041]
[1738263667082,0.61158,3270.0,3269.9,3.7302]
[1738263667279,0.61158,3270.0,3269.9,3.2078]
[1738263669574,0.61158,3270.1,3269.9,3.2078]
[1738263669878,0.61158,3270.1,3270.0,3.13040041]
[1738263670085,1.0208,3270.6,3270.0,3.13040041]
[1738263670386,0.61155,3270.2,3270.0,3.13040041]
[1738263670582,1.0208,3270.6,3270.0,3.13040041]
[1738263670778,0.61155,3270.2,3270.0,3.13040041]
[1738263670985,1.0208,3270.6,3270.0,3.13040041]
[1738263671184,1.0208,3270.6,3270.3,2.60760041]
[1738263671185,0.61152,3270.4,3270.3,2.60760041]
[1738263675182,0.61156,3270.1,3270.0,3.2078]
[1738263676187,0.61155,3270.2,3270.0,5.81540041]
[1738263676382,0.61155,3270.2,3270.0,6.42698041]
[1738263676583,0.61156,3270.1,3270.0,5.81540041]
[1738263676779,0.61156,3270.1,3270.0,6.33050041]
[1738263677077,0.61155,3270.2,3270.0,6.33050041]
[1738263677278,0.61155,3270.2,3270.1,0.5241]
[1738263677787,2.29198409,3270.9,3270.1,0.5241]
[1738263677986,0.61132,3271.4,3271.0,0.61139]
[1738263678285,1.52815,3271.8,3270.8,5.81540041]
[1738263678286,11.08518763,3272.4,3271.3,2.60760041]
[1738263678491,0.61123,3271.9,3271.8,2.60760041]
[1738263678686,0.5151,3272.3,3271.6,3.2078]
[1738263678881,0.61126,3271.7,3271.6,3.2078]
[1738263679294,1.52794,3272.2,3271.5,2.60760041]
[1738263679594,0.61127,3271.7,3271.5,2.60760041]
[1738263680392,0.0045861,3272.0,3271.5,3.21888041]
[1738263680693,0.61125,3271.8,3271.5,3.21888041]
[1738263682390,0.0045861,3272.0,3271.5,2.60760041]
[1738263682694,0.61124,3271.9,3271.6,0.61128]
[1738263683593,0.61124,3271.9,3271.5,2.60760041]
[1738263683799,0.6157961,3272.0,3271.8,2.60760041]
[1738263683993,0.6157961,3272.0,3271.8,3.21884041]
[1738263684193,0.0045861,3272.0,3271.8,3.21884041]
[1738263684901,0.0045861,3272.0,3271.8,2.60760041]
[1738263684902,0.61123,3271.9,3271.8,2.60760041]
[1738263686199,0.0045861,3272.0,3271.6,3.2078]
[1738263686200,0.61126,3271.7,3271.6,3.2078]
[1738263687905,0.0045861,3272.0,3271.6,3.2078]
[1738263688199,0.61124,3271.9,3271.8,2.60760041]
[1738263689295,0.0045861,3272.0,3271.9,0.61123]
[1738263689492,0.0045861,3272.0,3271.9,1.10853]
[1738263695107,0.0045861,3272.0,3271.9,1.35712718]
[1738263696408,0.0045861,3272.0,3271.9,4.29412718]
[1738263697012,3.2078,3272.9,3272.8,2.60760041]
[1738263697013,3.81884,3272.9,3272.8,2.60760041]
[1738263697207,1.022,3273.2,3272.8,2.60760041]
[1738263697500,1.022,3273.2,3272.9,0.5079]
[1738263697704,1.11168,3273.2,3273.1,2.60760041]
[1738263698811,0.5007,3273.2,3272.9,4.2189]
[1738263699011,0.61102,3273.0,3272.9,4.2189]
[1738263699806,0.5007,3273.2,3272.9,4.2189]
[1738263700007,0.61098,3273.3,3273.1,2.60760041]
[1738263700212,0.0045861,3273.4,3273.2,0.61098]
[1738263700411,0.6155461,3273.4,3273.1,3.21860041]
[1738263700806,0.0045861,3273.4,3273.1,2.60760041]
[1738263701215,0.6155461,3273.4,3273.1,2.60760041]
[1738263701511,0.61097,3273.3,3273.1,2.60760041]
[1738263701722,0.6155461,3273.4,3273.1,2.60760041]
[1738263702106,0.0045861,3273.4,3273.1,2.60760041]
[1738263702308,0.6155461,3273.4,3273.1,2.60760041]
[1738263702707,0.6155461,3273.4,3273.3,3.2078]
[1738263704014,0.0045861,3273.4,3273.3,3.2078]
[1738263704315,0.6155361,3273.4,3273.3,3.2078]
[1738263704813,0.0045861,3273.4,3273.3,3.2078]
[1738263705008,0.0045861,3273.4,3273.3,3.81877]
[1738263705208,0.0045861,3273.4,3273.3,3.2078]
[1738263705413,0.6155361,3273.4,3273.3,3.2078]
[1738263706914,0.0045861,3273.4,3273.3,3.2078]
[1738263707618,0.0045861,3273.4,3273.3,3.81877]
[1738263708515,5.66100041,3274.9,3273.3,3.81877]
[1738263708516,0.61078,3274.3,3273.8,0.61085]
[1738263708810,0.6108,3274.2,3274.1,2.60760041]
[1738263709015,3.2078,3274.6,3273.8,5.81540041]
[1738263709221,0.61085,3273.9,3273.8,5.81540041]
[1738263712621,0.61085,3274.0,3273.8,5.81540041]
[1738263712821,0.61085,3274.0,3273.8,6.31950041]
[1738263713023,0.61085,3274.0,3273.9,0.4893]
[1738263718231,0.00303316,3274.2,3273.9,0.4893]
[1738263718432,0.00303316,3274.2,3274.1,2.60760041]
[1738263718930,0.61383316,3274.2,3274.1,2.60760041]
[1738263721626,0.00303316,3274.2,3273.8,3.2078]
[1738263721827,0.61093,3273.5,3273.3,3.2078]
[1738263722023,0.61093,3273.6,3273.4,0.61094]
[1738263722227,0.61093,3273.6,3273.5,2.60760041]
[1738263723621,1.519,3273.9,3273.5,2.60760041]
[1738263723827,0.6109,3273.7,3273.5,3.21852041]
[1738263724334,1.0118,3273.9,3273.5,2.60760041]
[1738263724528,1.52721,3273.8,3273.3,3.2078]
[1738263724734,0.611,3273.1,3273.0,0.0045861]
[1738263729739,4.19980041,3273.3,3272.3,3.2078]
[1738263729939,0.61113,3272.4,3272.3,3.2078]
[1738263731037,0.61119,3272.1,3272.0,0.0045861]
[1738263732833,5.61119,3272.1,3272.0,0.0045861]
[1738263733139,5.61119,3272.1,3271.3,3.2078]
[1738263733140,0.61132,3271.4,3271.3,3.2078]
[1738263736040,0.61132,3271.4,3271.1,0.4867]
[1738263736241,0.61132,3271.4,3271.0,0.0045861]
[1738263736242,0.61138,3271.1,3271.0,0.0045861]
[1738263736545,0.61149,3270.5,3270.4,6.84120041]
[1738263736746,0.61149,3270.5,3270.4,3.63340041]
[1738263737042,2.05182,3271.0,3270.4,6.84120041]
[1738263737236,0.61148,3270.6,3270.4,6.84120041]
[1738263737436,0.61141,3270.9,3270.4,6.84120041]
[1738263737640,0.61149,3270.6,3270.4,6.84120041]
[1738263738043,0.61145,3270.8,3270.4,7.45270041]
[1738263738237,0.61145,3270.8,3270.7,2.60760041]
[1738263738745,2.03811,3271.4,3270.4,6.84120041]
[1738263738950,0.61149,3270.5,3270.4,0.5153]
[1738263744042,0.61149,3270.5,3270.4,3.12290041]
[1738263744238,0.5343,3271.0,3270.4,3.12290041]
[1738263744447,0.61149,3270.5,3270.4,3.12290041]
[1738263744742,0.61148,3270.6,3270.4,3.12290041]
[1738263745045,0.61148,3270.6,3270.4,5.81540041]
[1738263745246,0.61148,3270.6,3270.5,0.5286]
[1738263747748,0.61146,3270.7,3270.5,0.5286]
[1738263747943,0.61147,3270.6,3270.5,0.5286]
[1738263748850,3.2078,3271.1,3270.5,0.5286]
[1738263749045,3.05626,3271.8,3270.9,2.60760041]
[1738263749046,3.2078,3271.5,3270.9,2.60760041]
[1738263749360,0.61134,3271.3,3271.2,2.60760041]
[1738263749846,3.2078,3271.5,3270.5,3.4656]
[1738263749847,3.2078,3271.5,3270.6,2.60760041]
[1738263750056,0.61145,3270.7,3270.6,2.60760041]
[1738263750352,3.2078,3271.1,3270.5,4.2004264]
[1738263750548,0.61147,3270.6,3270.5,1.0152]
[1738263754151,3.2078,3271.1,3270.5,1.0152]
[1738263754453,0.61141,3270.9,3270.8,2.60760041]
[1738263754655,3.2078,3271.1,3270.8,2.60760041]
[1738263754958,3.81919,3271.1,3270.9,1.11381]
[1738263755154,3.2078,3271.1,3270.9,0.5024]
[1738263755355,3.2078,3271.1,3271.0,1.1231]
[1738263755556,3.81918,3271.1,3271.0,0.5117]
[1738263755755,3.2078,3271.1,3271.0,1.1231]
[1738263756058,0.61135,3271.3,3271.0,1.1231]
[1738263756252,0.61133,3271.4,3271.2,6.42675041]
[1738263756453,0.61131,3271.5,3271.2,5.81540041]
[1738263756651,0.61134,3271.3,3271.2,5.81540041]
[1738263757355,0.61133,3271.4,3271.2,6.42675041]
[1738263757551,0.61133,3271.4,3271.2,5.81540041]
[1738263757953,0.61134,3271.3,3271.2,5.81540041]
[1738263758450,0.61134,3271.3,3271.2,2.60760041]
[1738263759163,0.61128,3271.7,3271.4,0.61132]
[1738263759353,0.61128,3271.6,3271.5,3.09290041]
[1738263759863,0.61127,3271.7,3271.5,3.09290041]
[1738263760054,0.61127,3271.7,3271.6,0.5053]
[1738263761554,0.61133,3271.4,3271.2,5.81540041]
[1738263761765,0.61133,3271.4,3271.3,0.5124]
[1738263763962,0.61134,3271.3,3271.2,3.2078]
[1738263764255,0.61134,3271.3,3270.9,2.60760041]
[1738263764256,0.6114,3271.0,3270.9,2.60760041]
[1738263766250,0.61139,3271.1,3270.9,2.60760041]
[1738263766454,0.6114,3271.0,3270.9,2.60760041]
[1738263769472,4.73599,3271.7,3270.9,2.60760041]
[1738263769659,4.73599,3271.7,3271.3,2.60760041]
[1738263769660,0.61131,3271.5,3271.3,2.60760041]
[1738263769966,0.6113,3271.5,3271.4,1.5025]
[1738263770268,0.6113,3271.5,3271.4,1.0119]
[1738263774068,0.6113,3271.5,3271.4,1.62322]
[1738263774373,1.52811,3271.9,3271.4,1.62322]
[1738263774374,4.73581,3272.1,3271.5,0.61129]
[1738263774570,0.61121,3272.0,3271.5,0.61129]
[1738263774766,0.61128,3271.6,3271.5,0.61129]
[1738263774964,3.2078,3272.1,3271.4,1.0119]
[1738263775164,0.6113,3271.5,3271.4,1.62322]
[1738263775972,0.61129,3271.6,3271.4,1.62322]
[1738263776271,0.61129,3271.6,3271.5,0.5127]
[1738263777067,0.61132,3271.4,3271.3,2.937]
[1738263777263,0.61141,3270.9,3270.8,3.2078]
[1738263777567,0.5233,3271.5,3270.6,0.4923]
[1738263777568,1.52843,3271.2,3270.6,0.4923]
[1738263777870,0.61145,3270.7,3270.6,3.09990041]
[1738263779074,0.61145,3270.7,3270.6,0.4923]
[1738263779471,4.1939,3271.3,3270.6,3.09990041]
[1738263779673,0.61141,3271.0,3270.9,2.60760041]
[1738263780272,0.61137,3271.2,3270.9,3.10830041]
[1738263780472,1.528,3272.1,3270.9,6.04530041]
[1738263780772,1.5302,3272.3,3271.8,5.81540041]
[1738263780980,0.61116,3272.3,3272.1,2.60760041]
[1738263781274,0.61117,3272.2,3272.1,2.60760041]
[1738263781569,0.0045861,3272.4,3272.1,2.60760041]
[1738263781769,0.0045861,3272.4,3272.2,3.2078]
[1738263782075,0.0045861,3272.4,3272.3,0.61115]